[Event "AUT-ch U16-Open 2025"]
[Site "Fuerstenfeld"]
[Date "2025.04.13"]
[Round "2.1"]
[White "Taizhanov, Aissultan"]
[Black "Stickler, Florentin"]
[Result "0-1"]
[Annotator "ChessBase"]
[ECO "C45"]
[WhiteElo "1952"]
[BlackElo "2189"]
[PlyCount "98"]
[EventDate "2025.04.12"]
[EventType "swiss"]
[EventCountry "AUT"]
[SourceTitle "playchess.com"]
[Source "ChessBase"]
[SourceQuality "1"]
[TimeControl "5400+30"]

1. e4 {[%emt 0:00:51]} e5 {[%emt 0:00:04]} 2. Nf3 {[%emt 0:00:05]} Nc6 {[%emt 0:00:02]} 3. d4 {[%emt 0:00:07]} exd4 {[%emt 0:00:09]} 4. Nxd4 {[%emt 0:00:05]} Nf6 {[%emt 0:00:07]} 5. Nxc6 {[%emt 0:00:28]} bxc6 {[%emt 0:00:06]} 6. Qe2 {[%emt 0:00:30]} d6 {[%emt 0:11:55]} 7. Nc3 {[%emt 0:11:55]} Be7 {[%emt 0:01:54]} 8. Bf4 {[%emt 0:03:28]} Be6 {[%emt 0:02:17]} 9. O-O-O {[%emt 0:06:04]} O-O {[%emt 0:01:30]} 10. h3 {[%emt 0:07:50]} a5 {[%emt 0:02:33]} 11. Qe3 {[%emt 0:11:26]} Qb8 {[%emt 0:07:02]} 12. Bd3 {[%emt 0:05:39]} Qb7 {[%emt 1:08:51]} 13. g4 {[%emt 0:48:32]} Rfb8 {[%emt 0:00:00]} 14. b3 {[%emt 0:00:00]} Nd7 {[%emt 0:00:00]} 15. Na4 {[%emt 0:00:00]} Qb4 {[%emt 0:00:00]} 16. e5 {[%emt 0:00:00]} d5 {[%emt 0:00:00]} 17. Bg5 {[%emt 0:00:00]} Bc5 {[%emt 0:00:00]} 18. Qg3 {[%emt 0:00:00]} h6 {[%emt 0:00:00]} 19. Be3 {[%emt 0:00:00]} d4 {[%emt 0:00:00]} 20. g5 {[%emt 0:00:00]} dxe3 {[%emt 0:00:00]} 21. gxh6 {[%emt 0:00:00]} Bf8 {[%emt 0:00:00]} 22. hxg7 {[%emt 0:00:00]} Be7 {[%emt 0:00:00]} 23. Qxe3 {[%emt 0:00:00]} Qh4 {[%emt 0:00:00]} 24. Rhg1 {[%emt 0:00:00]} Rb4 {[%emt 0:00:00]} 25. c4 {[%emt 0:00:00]} Rab8 {[%emt 0:00:00]} 26. f4 {[%emt 0:00:00]} Rxa4 {[%emt 0:00:00]} 27. bxa4 {[%emt 0:00:00]} Ba3+ {[%emt 0:00:00]} 28. Kc2 {[%emt 0:00:00]} Rb2+ {[%emt 0:00:00]} 29. Kc3 {[%emt 0:00:00]} Rh2 {[%emt 0:00:00]} 30. Qa7 {[%emt 0:03:02]} Bb4+ {[%emt 0:00:00]} 31. Kb3 {[%emt 0:00:06]} Qd8 {[%emt 0:02:07]} 32. Bh7+ {[%emt 0:03:54]} Kxh7 {[%emt 0:00:05]} 33. g8=Q+ {[%emt 0:01:09]} Qxg8 {[%emt 0:00:07]} 34. Rxg8 {[%emt 0:00:07]} Nc5+ {[%emt 0:01:04]} 35. Qxc5 {[%emt 0:00:09]} Bxc5 {[%emt 0:00:09]} 36. Rg3 {[%emt 0:01:14]} Rf2 {[%emt 0:01:11]} 37. Rdg1 {[%emt 0:01:46]} Rxf4 {[%emt 0:00:33]} 38. R1g2 {[%emt 0:00:26]} Bxc4+ {[%emt 0:00:36]} 39. Kc2 {[%emt 0:00:25]} Rf2+ {[%emt 0:01:53]} 40. Rxf2 {[%emt 0:00:33]} Bxf2 {[%emt 0:00:05]} 41. Rg2 {[%emt 0:00:19]} Bd4 {[%emt 0:00:33]} 42. Rg4 {[%emt 0:00:41]} c5 {[%emt 0:00:04]} 43. a3 {[%emt 0:00:31]} Be6 {[%emt 0:00:18]} 44. Rg2 {[%emt 0:00:27]} Bxe5 {[%emt 0:00:11]} 45. Kd3 {[%emt 0:00:38]} Bd5 {[%emt 0:00:58]} 46. Rc2 {[%emt 0:00:32]} c4+ {[%emt 0:00:18]} 47. Ke3 {[%emt 0:00:12]} c5 {[%emt 0:00:36]} 48. Rc1 {[%emt 0:00:16]} f5 {[%emt 0:00:23]} 49. Rb1 {[%emt 0:00:32]} f4+ {[%emt 0:07:19]} 0-1

[Event "AUT-ch U16-Open 2025"]
[Site "Fuerstenfeld"]
[Date "2025.04.13"]
[Round "2.2"]
[White "Ortner, Sebastian"]
[Black "Pausweg, Daniel"]
[Result "1-0"]
[Annotator "ChessBase"]
[ECO "E27"]
[WhiteElo "1925"]
[BlackElo "2080"]
[PlyCount "69"]
[EventDate "2025.04.12"]
[EventType "swiss"]
[EventCountry "AUT"]
[SourceTitle "playchess.com"]
[Source "ChessBase"]
[SourceQuality "1"]
[TimeControl "5400+30"]

1. d4 {[%emt 0:00:04]} Nf6 {[%emt 0:00:09]} 2. c4 {[%emt 0:00:06]} e6 {[%emt 0:00:06]} 3. Nc3 {[%emt 0:00:42]} Bb4 {[%emt 0:00:15]} 4. a3 {[%emt 0:00:05]} Bxc3+ {[%emt 0:00:15]} 5. bxc3 {[%emt 0:00:05]} b6 {[%emt 0:00:44]} 6. f3 {[%emt 0:00:54]} d5 {[%emt 0:01:31]} 7. cxd5 {[%emt 0:03:40]} exd5 {[%emt 0:00:11]} 8. e3 {[%emt 0:01:15]} O-O {[%emt 0:00:23]} 9. Bd3 {[%emt 0:00:33]} Nc6 {[%emt 0:02:07]} 10. Ne2 {[%emt 0:01:02]} Bb7 {[%emt 0:01:37]} 11. O-O {[%emt 0:03:59]} Na5 {[%emt 0:01:31]} 12. Ng3 {[%emt 0:02:26]} Re8 {[%emt 0:04:05]} 13. Re1 {[%emt 0:03:04]} c5 {[%emt 0:02:58]} 14. Bb2 {[%emt 0:04:27]} cxd4 {[%emt 0:04:43]} 15. cxd4 {[%emt 0:00:45]} Rc8 {[%emt 0:03:08]} 16. Rc1 {[%emt 0:01:00]} Rxc1 {[%emt 0:04:02]} 17. Qxc1 {[%emt 0:00:28]} Qe7 {[%emt 0:01:28]} 18. e4 {[%emt 0:08:35]} Rc8 {[%emt 0:02:34]} 19. Nf5 {[%emt 0:01:21]} Qf8 {[%emt 0:03:11]} 20. Qg5 {[%emt 0:02:29]} dxe4 {[%emt 0:03:16]} 21. fxe4 {[%emt 0:13:02]} Nc4 {[%emt 0:02:24]} 22. Bxc4 {[%emt 0:06:46]} Rxc4 {[%emt 0:00:30]} 23. d5 {[%emt 0:08:34]} Ne8 {[%emt 0:03:30]} 24. Qd8 {[%emt 0:10:15]} Rc8 {[%emt 0:01:23]} 25. Ne7+ {[%emt 0:01:07]} Kh8 {[%emt 0:00:08]} 26. Nxc8 {[%emt 0:00:46]} Qc5+ {[%emt 0:00:14]} 27. Kh1 {[%emt 0:01:19]} Qxc8 {[%emt 0:00:09]} 28. Qxc8 {[%emt 0:00:23]} Bxc8 {[%emt 0:00:05]} 29. e5 {[%emt 0:02:14]} Kg8 {[%emt 0:00:20]} 30. Rc1 {[%emt 0:02:24]} Bd7 {[%emt 0:00:38]} 31. Kg1 {[%emt 0:01:45]} Kf8 {[%emt 0:00:12]} 32. Bc3 {[%emt 0:01:16]} Ke7 {[%emt 0:00:20]} 33. Bb4+ {[%emt 0:00:38]} Kd8 {[%emt 0:00:02]} 34. Rf1 {[%emt 0:01:12]} f5 {[%emt 0:00:40]} 35. e6 {[%emt 0:00:18]} 1-0

[Event "AUT-ch U16-Open 2025"]
[Site "Fuerstenfeld"]
[Date "2025.04.13"]
[Round "2.3"]
[White "Squasi, Ernesto"]
[Black "Wu, Chenshan"]
[Result "1-0"]
[Annotator "ChessBase"]
[ECO "B12"]
[WhiteElo "1904"]
[BlackElo "2011"]
[PlyCount "35"]
[EventDate "2025.04.12"]
[EventType "swiss"]
[EventCountry "AUT"]
[SourceTitle "playchess.com"]
[Source "ChessBase"]
[SourceQuality "1"]
[TimeControl "5400+30"]

1. e4 {[%emt 0:00:02]} c6 {[%emt 0:00:05]} 2. d4 {[%emt 0:00:08]} d5 {[%emt 0:00:05]} 3. f3 {[%emt 0:00:17]} e6 {[%emt 0:01:57]} 4. Nc3 {[%emt 0:01:45]} Bb4 {[%emt 0:04:14]} 5. Be3 {[%emt 0:13:15]} dxe4 {[%emt 0:05:33]} 6. Qd2 {[%emt 0:03:36]} Nf6 {[%emt 0:01:54]} 7. Bg5 {[%emt 0:04:16]} exf3 {[%emt 0:09:15]} 8. Nxf3 {[%emt 0:00:13]} Nbd7 {[%emt 0:00:47]} 9. Bd3 {[%emt 0:04:10]} O-O {[%emt 0:02:20]} 10. O-O {[%emt 0:01:58]} Be7 {[%emt 0:02:03]} 11. Qf4 {[%emt 0:15:21]} Nd5 {[%emt 0:16:11]} 12. Nxd5 {[%emt 0:00:27]} Bxg5 {[%emt 0:14:18]} 13. Nxg5 {[%emt 0:00:18]} exd5 {[%emt 0:09:52]} 14. Bxh7+ {[%emt 0:03:06]} Kh8 {[%emt 0:00:11]} 15. Qh4 {[%emt 0:00:26]} Qxg5 {[%emt 0:00:22]} 16. Qxg5 {[%emt 0:00:19]} Kxh7 {[%emt 0:00:10]} 17. Rae1 {[%emt 0:06:09]} Nb6 {[%emt 0:06:46]} 18. Rf4 {[%emt 0:43:44]} 1-0

[Event "AUT-ch U16-Open 2025"]
[Site "Fuerstenfeld"]
[Date "2025.04.13"]
[Round "2.4"]
[White "Nicolussi, Hieronymus"]
[Black "Guba, Viktor"]
[Result "1/2-1/2"]
[Annotator "NA"]
[ECO "C45"]
[WhiteElo "1999"]
[BlackElo "1931"]
[PlyCount "72"]
[EventDate "2025.04.12"]
[EventType "swiss"]
[EventCountry "AUT"]
[SourceTitle "playchess.com"]
[Source "ChessBase"]
[SourceQuality "1"]
[TimeControl "5400+30"]

1. e4 {[%emt 0:00:04]} e5 {[%emt 0:00:10]} 2. Nf3 {[%emt 0:00:30]} Nc6 {[%emt 0:00:13]} 3. d4 {[%emt 0:00:06]} exd4 {[%emt 0:00:56]} 4. Nxd4 {[%emt 0:00:08]} Nf6 {[%emt 0:00:48]} 5. Nxc6 {[%emt 0:00:05]} bxc6 {[%emt 0:00:07]} 6. e5 {[%emt 0:00:05]} Qe7 {[%emt 0:00:51]} 7. Qe2 {[%emt 0:00:20]} Nd5 {[%emt 0:00:53]} 8. h4 {[%emt 0:00:11]} d6 {[%emt 0:07:53]} 9. c4 {[%emt 0:00:33]} Nb4 {[%emt 0:01:11]} 10. a3 {[%emt 0:00:53]} Na6 {[%emt 0:00:06]} 11. exd6 {[%emt 0:00:21]} Qxe2+ {[%emt 0:02:01]} 12. Bxe2 {[%emt 0:00:07]} cxd6 {[%emt 0:01:27]} 13. Bf3 {[%emt 0:01:01]} Bb7 {[%emt 0:02:16]} 14. Nc3 {[%emt 0:01:39]} Nc5 {[%emt 0:01:43]} 15. Be3 {[%emt 0:09:45]} Nd3+ {[%emt 0:01:07]} 16. Kf1 {[%emt 0:01:42]} Be7 {[%emt 0:02:53]} 17. Be4 {[%emt 0:10:51]} Ne5 {[%emt 0:01:40]} 18. b3 {[%emt 0:01:10]} O-O {[%emt 0:02:48]} 19. Rd1 {[%emt 0:01:41]} f5 {[%emt 0:09:20]} 20. Bc2 {[%emt 0:01:26]} Ba6 {[%emt 0:10:34]} 21. Bf4 {[%emt 0:11:18]} Bf6 {[%emt 0:03:38]} 22. Rh3 {[%emt 0:05:46]} d5 {[%emt 0:02:35]} 23. Bxf5 {[%emt 0:05:35]} dxc4 {[%emt 0:01:50]} 24. b4 {[%emt 0:03:18]} Nd3 {[%emt 0:00:31]} 25. Bxd3 {[%emt 0:04:32]} cxd3 {[%emt 0:01:01]} 26. Na4 {[%emt 0:04:41]} Bd4 {[%emt 0:01:24]} 27. Be3 {[%emt 0:03:52]} Rae8 {[%emt 0:10:16]} 28. Kg1 {[%emt 0:07:56]} Rd8 {[%emt 0:01:36]} 29. Bxd4 {[%emt 0:01:10]} Rxd4 {[%emt 0:00:04]} 30. Nc5 {[%emt 0:02:18]} Bc4 {[%emt 0:00:20]} 31. Rd2 {[%emt 0:02:19]} Rff4 {[%emt 0:02:47]} 32. Nxd3 {[%emt 0:02:10]} Rf8 {[%emt 0:00:16]} 33. Kf1 {[%emt 0:01:28]} Re8 {[%emt 0:03:12]} 34. Rd1 {[%emt 0:05:42]} Rde4 {[%emt 0:02:05]} 35. Kg1 {[%emt 0:01:19]} Rd8 {[%emt 0:00:05]} 36. Kf1 {[%emt 0:00:56]} Rde8 {[%emt 0:00:05]} 1/2-1/2

[Event "AUT-ch U16-Open 2025"]
[Site "Fuerstenfeld"]
[Date "2025.04.13"]
[Round "2.5"]
[White "Benedikt, Noah"]
[Black "Reichhuetter, Richard"]
[Result "1-0"]
[Annotator "NA"]
[ECO "E12"]
[WhiteElo "1976"]
[BlackElo "1916"]
[PlyCount "71"]
[EventDate "2025.04.12"]
[EventType "swiss"]
[EventCountry "AUT"]
[SourceTitle "playchess.com"]
[Source "ChessBase"]
[SourceQuality "1"]
[TimeControl "5400+30"]

1. c4 {[%emt 0:00:04]} Nf6 {[%emt 0:00:13]} 2. d4 {[%emt 0:00:43]} e6 {[%emt 0:00:01]} 3. Nf3 {[%emt 0:00:33]} b6 {[%emt 0:00:08]} 4. Bg5 {[%emt 0:03:56]} Bb7 {[%emt 0:04:09]} 5. e3 {[%emt 0:00:12]} Be7 {[%emt 0:02:56]} 6. Nc3 {[%emt 0:01:25]} d5 {[%emt 0:04:24]} 7. cxd5 {[%emt 0:01:46]} Nxd5 {[%emt 0:02:30]} 8. Bxe7 {[%emt 0:01:20]} Nxe7 {[%emt 0:02:27]} 9. Bd3 {[%emt 0:00:40]} O-O {[%emt 0:00:27]} 10. O-O {[%emt 0:05:05]} h6 {[%emt 0:01:49]} 11. Qe2 {[%emt 0:02:11]} Nd5 {[%emt 0:08:01]} 12. Rac1 {[%emt 0:01:16]} Nd7 {[%emt 0:11:27]} 13. Nxd5 {[%emt 0:04:08]} exd5 {[%emt 0:00:26]} 14. b4 {[%emt 0:00:30]} c6 {[%emt 0:09:32]} 15. Rc2 {[%emt 0:02:51]} b5 {[%emt 0:04:10]} 16. Nd2 {[%emt 0:34:50]} Nb6 {[%emt 0:05:54]} 17. Nb3 {[%emt 0:00:15]} Qe7 {[%emt 0:25:21]} 18. Nc5 {[%emt 0:00:08]} a5 {[%emt 0:00:34]} 19. bxa5 {[%emt 0:17:41]} Rxa5 {[%emt 0:00:15]} 20. Rb1 {[%emt 0:00:05]} Na4 {[%emt 0:02:31]} 21. Nb3 {[%emt 0:03:52]} Ra7 {[%emt 0:00:01]} 22. Rbc1 {[%emt 0:00:01]} Nb6 {[%emt 0:01:26]} 23. Nc5 {[%emt 0:01:16]} Rc8 {[%emt 0:02:02]} 24. Bf5 {[%emt 0:02:09]} Rc7 {[%emt 0:00:47]} 25. Nxb7 {[%emt 0:00:55]} Raxb7 {[%emt 0:01:34]} 26. Rxc6 {[%emt 0:00:10]} Rxc6 {[%emt 0:00:08]} 27. Rxc6 {[%emt 0:00:04]} g6 {[%emt 0:00:01]} 28. Bd3 {[%emt 0:03:41]} Nc4 {[%emt 0:02:32]} 29. g3 {[%emt 0:02:00]} h5 {[%emt 0:00:45]} 30. Bxg6 {[%emt 0:06:00]} Qd7 {[%emt 0:00:13]} 31. Bh7+ {[%emt 0:00:20]} Kxh7 {[%emt 0:00:36]} 32. Qxh5+ {[%emt 0:00:05]} Kg8 {[%emt 0:00:53]} 33. Qg5+ {[%emt 0:00:04]} Kf8 {[%emt 0:00:23]} 34. Rh6 {[%emt 0:00:03]} f6 {[%emt 0:00:48]} 35. Qxf6+ {[%emt 0:00:03]} Kg8 {[%emt 0:00:20]} 36. Rh8# {[%emt 0:01:37]} 1-0

[Event "AUT-ch U16-Open 2025"]
[Site "Fuerstenfeld"]
[Date "2025.04.13"]
[Round "2.6"]
[White "Geworgyan, Derenick"]
[Black "Martinovic, David"]
[Result "0-1"]
[Annotator "ChessBase"]
[ECO "C54"]
[WhiteElo "1657"]
[BlackElo "1968"]
[PlyCount "66"]
[EventDate "2025.04.12"]
[EventType "swiss"]
[EventCountry "AUT"]
[SourceTitle "playchess.com"]
[Source "ChessBase"]
[SourceQuality "1"]
[TimeControl "5400+30"]

1. e4 {[%emt 0:00:01]} e5 {[%emt 0:00:06]} 2. Nf3 {[%emt 0:00:03]} Nc6 {[%emt 0:00:07]} 3. Bc4 {[%emt 0:00:02]} Bc5 {[%emt 0:00:09]} 4. c3 {[%emt 0:00:07]} Nf6 {[%emt 0:00:06]} 5. d3 {[%emt 0:00:04]} d6 {[%emt 0:00:11]} 6. O-O {[%emt 0:00:11]} a5 {[%emt 0:01:15]} 7. Bb3 {[%emt 0:00:18]} h6 {[%emt 0:01:18]} 8. h3 {[%emt 0:01:35]} g5 {[%emt 0:08:37]} 9. Nh2 {[%emt 0:03:20]} Rg8 {[%emt 0:03:23]} 10. Ng4 {[%emt 0:03:00]} Bxg4 {[%emt 0:13:33]} 11. hxg4 {[%emt 0:00:29]} Qd7 {[%emt 0:03:27]} 12. Qf3 {[%emt 0:01:15]} Rg6 {[%emt 0:10:33]} 13. Be3 {[%emt 0:02:07]} Qxg4 {[%emt 0:02:03]} 14. Qxg4 {[%emt 0:00:34]} Nxg4 {[%emt 0:00:02]} 15. Bxc5 {[%emt 0:00:20]} dxc5 {[%emt 0:00:01]} 16. f3 {[%emt 0:00:59]} Nf6 {[%emt 0:02:12]} 17. Nd2 {[%emt 0:01:08]} Rd8 {[%emt 0:08:15]} 18. Bc2 {[%emt 0:01:20]} Nh5 {[%emt 0:02:17]} 19. Nb3 {[%emt 0:01:26]} b6 {[%emt 0:01:31]} 20. Rad1 {[%emt 0:00:53]} Ke7 {[%emt 0:06:14]} 21. Kf2 {[%emt 0:02:26]} g4 {[%emt 0:07:55]} 22. Rg1 {[%emt 0:01:39]} Nf4 {[%emt 0:03:55]} 23. Nc1 {[%emt 0:00:33]} Rdg8 {[%emt 0:03:47]} 24. Ne2 {[%emt 0:01:33]} Nxe2 {[%emt 0:09:47]} 25. Kxe2 {[%emt 0:00:37]} gxf3+ {[%emt 0:03:05]} 26. Kxf3 {[%emt 0:00:06]} Rg3+ {[%emt 0:00:16]} 27. Kf2 {[%emt 0:01:13]} Nd8 {[%emt 0:02:13]} 28. Bb3 {[%emt 0:00:40]} b5 {[%emt 0:01:38]} 29. a3 {[%emt 0:00:49]} h5 {[%emt 0:01:38]} 30. Ba2 {[%emt 0:01:06]} h4 {[%emt 0:00:43]} 31. Bb3 {[%emt 0:00:10]} R8g6 {[%emt 0:00:31]} 32. Bc2 {[%emt 0:02:01]} Ne6 {[%emt 0:00:24]} 33. Rde1 {[%emt 0:00:37]} Nf4 {[%emt 0:00:36]} 0-1

[Event "AUT-ch U16-Open 2025"]
[Site "Fuerstenfeld"]
[Date "2025.04.13"]
[Round "2.7"]
[White "Prober, Raphael"]
[Black "Hellerschmid, Andreas"]
[Result "1-0"]
[Annotator "NA"]
[ECO "B12"]
[WhiteElo "2131"]
[BlackElo "1835"]
[PlyCount "91"]
[EventDate "2025.04.12"]
[EventType "swiss"]
[EventCountry "AUT"]
[SourceTitle "playchess.com"]
[Source "ChessBase"]
[SourceQuality "1"]
[TimeControl "5400+30"]

1. e4 {[%emt 0:00:05]} c6 {[%emt 0:00:04]} 2. d4 {[%emt 0:00:19]} d5 {[%emt 0:00:04]} 3. e5 {[%emt 0:00:11]} c5 {[%emt 0:00:05]} 4. dxc5 {[%emt 0:00:18]} e6 {[%emt 0:00:07]} 5. Qh5 {[%emt 0:00:30]} Bxc5 {[%emt 0:03:09]} 6. Bd3 {[%emt 0:00:11]} Nc6 {[%emt 0:02:52]} 7. Nf3 {[%emt 0:00:23]} Nb4 {[%emt 0:02:45]} 8. O-O {[%emt 0:00:13]} Ne7 {[%emt 0:03:15]} 9. Bg5 {[%emt 0:00:24]} Qb6 {[%emt 0:02:31]} 10. Nc3 {[%emt 0:05:18]} Bd7 {[%emt 0:04:23]} 11. Rab1 {[%emt 0:16:11]} Nxd3 {[%emt 0:05:13]} 12. cxd3 {[%emt 0:00:02]} Nf5 {[%emt 0:01:22]} 13. b4 {[%emt 0:05:04]} Be7 {[%emt 0:08:08]} 14. Bxe7 {[%emt 0:02:23]} Nxe7 {[%emt 0:00:16]} 15. a4 {[%emt 0:02:37]} O-O {[%emt 0:05:43]} 16. Qg5 {[%emt 0:04:57]} Qd8 {[%emt 0:02:19]} 17. Nd4 {[%emt 0:01:36]} Nc6 {[%emt 0:04:44]} 18. Qf4 {[%emt 0:02:33]} Nxd4 {[%emt 0:00:54]} 19. Qxd4 {[%emt 0:00:02]} f6 {[%emt 0:04:09]} 20. f4 {[%emt 0:03:50]} Qb6 {[%emt 0:03:12]} 21. Qxb6 {[%emt 0:02:39]} axb6 {[%emt 0:00:16]} 22. a5 {[%emt 0:01:42]} fxe5 {[%emt 0:07:20]} 23. fxe5 {[%emt 0:00:11]} Rxf1+ {[%emt 0:00:17]} 24. Kxf1 {[%emt 0:00:20]} bxa5 {[%emt 0:00:12]} 25. bxa5 {[%emt 0:00:07]} Bc6 {[%emt 0:00:08]} 26. Ra1 {[%emt 0:00:22]} Kf7 {[%emt 0:02:50]} 27. Kf2 {[%emt 0:03:08]} Ke7 {[%emt 0:00:32]} 28. Ne2 {[%emt 0:00:15]} Bb5 {[%emt 0:05:49]} 29. Ke3 {[%emt 0:01:32]} Rc8 {[%emt 0:00:55]} 30. Nd4 {[%emt 0:00:19]} Ba6 {[%emt 0:00:22]} 31. Kd2 {[%emt 0:04:21]} Rc5 {[%emt 0:00:56]} 32. Nb3 {[%emt 0:00:10]} Rc8 {[%emt 0:00:48]} 33. Rc1 {[%emt 0:02:09]} Rxc1 {[%emt 0:01:02]} 34. Nxc1 {[%emt 0:00:02]} Bb5 {[%emt 0:02:34]} 35. Nb3 {[%emt 0:01:26]} Bd7 {[%emt 0:01:23]} 36. Kc3 {[%emt 0:00:16]} Kd8 {[%emt 0:01:39]} 37. Kb4 {[%emt 0:00:18]} Kc7 {[%emt 0:00:34]} 38. Kc5 {[%emt 0:00:18]} Ba4 {[%emt 0:06:18]} 39. Nd4 {[%emt 0:00:17]} Bd7 {[%emt 0:00:23]} 40. g3 {[%emt 0:01:07]} g6 {[%emt 0:03:08]} 41. h4 {[%emt 0:01:23]} h5 {[%emt 0:00:31]} 42. Ne2 {[%emt 0:02:22]} Be8 {[%emt 0:00:24]} 43. Nf4 {[%emt 0:00:22]} Bf7 {[%emt 0:00:20]} 44. d4 {[%emt 0:00:28]} Kd7 {[%emt 0:00:19]} 45. Kb6 {[%emt 0:00:13]} Kc8 {[%emt 0:00:22]} 46. Nd3 {[%emt 0:00:13]} 1-0

[Event "AUT-ch U16-Open 2025"]
[Site "Fuerstenfeld"]
[Date "2025.04.13"]
[Round "2.8"]
[White "Fuertler, Oliver"]
[Black "Haselsberger, Armin"]
[Result "0-1"]
[Annotator "NA"]
[ECO "D36"]
[WhiteElo "2008"]
[BlackElo "2004"]
[PlyCount "104"]
[EventDate "2025.04.12"]
[EventType "swiss"]
[EventCountry "AUT"]
[SourceTitle "playchess.com"]
[Source "ChessBase"]
[SourceQuality "1"]
[TimeControl "5400+30"]

1. d4 {[%emt 0:00:03]} Nf6 {[%emt 0:00:35]} 2. c4 {[%emt 0:00:06]} e6 {[%emt 0:00:27]} 3. Nc3 {[%emt 0:00:05]} d5 {[%emt 0:00:38]} 4. cxd5 {[%emt 0:00:07]} exd5 {[%emt 0:00:06]} 5. Bg5 {[%emt 0:00:06]} Be7 {[%emt 0:01:48]} 6. e3 {[%emt 0:00:07]} O-O {[%emt 0:01:34]} 7. Bd3 {[%emt 0:00:09]} h6 {[%emt 0:00:22]} 8. Bh4 {[%emt 0:00:06]} c6 {[%emt 0:01:02]} 9. Qc2 {[%emt 0:01:53]} Re8 {[%emt 0:01:13]} 10. Nge2 {[%emt 0:03:05]} Nbd7 {[%emt 0:01:22]} 11. O-O {[%emt 0:01:00]} Ne4 {[%emt 0:01:39]} 12. Bxe7 {[%emt 0:02:54]} Qxe7 {[%emt 0:00:02]} 13. Rae1 {[%emt 0:00:56]} Ndf6 {[%emt 0:07:04]} 14. f3 {[%emt 0:01:45]} Nxc3 {[%emt 0:06:58]} 15. Nxc3 {[%emt 0:00:15]} Qd6 {[%emt 0:02:15]} 16. Qf2 {[%emt 0:02:33]} Be6 {[%emt 0:04:48]} 17. Ne2 {[%emt 0:07:32]} Rad8 {[%emt 0:06:29]} 18. Bb1 {[%emt 0:01:02]} Qb4 {[%emt 0:07:14]} 19. Nf4 {[%emt 0:01:20]} Bc8 {[%emt 0:01:23]} 20. Nd3 {[%emt 0:02:30]} Qd6 {[%emt 0:02:10]} 21. b4 {[%emt 0:01:41]} b6 {[%emt 0:02:46]} 22. Rc1 {[%emt 0:03:22]} Ba6 {[%emt 0:02:21]} 23. a3 {[%emt 0:00:47]} Re7 {[%emt 0:02:11]} 24. Rfe1 {[%emt 0:01:27]} Bxd3 {[%emt 0:07:31]} 25. Bxd3 {[%emt 0:00:09]} Rde8 {[%emt 0:00:35]} 26. Rc3 {[%emt 0:01:16]} g6 {[%emt 0:04:47]} 27. Bf1 {[%emt 0:04:52]} Nd7 {[%emt 0:04:45]} 28. Rec1 {[%emt 0:00:58]} Re6 {[%emt 0:00:51]} 29. Qc2 {[%emt 0:02:00]} Rxe3 {[%emt 0:06:30]} 30. Rxe3 {[%emt 0:04:22]} Rxe3 {[%emt 0:00:02]} 31. Qxc6 {[%emt 0:00:10]} Qxc6 {[%emt 0:04:08]} 32. Rxc6 {[%emt 0:00:06]} Rxa3 {[%emt 0:00:51]} 33. Rd6 {[%emt 0:00:29]} Nf8 {[%emt 0:00:02]} 34. Rxd5 {[%emt 0:00:23]} Ra4 {[%emt 0:00:42]} 35. Rb5 {[%emt 0:02:47]} Kg7 {[%emt 0:03:23]} 36. Kf2 {[%emt 0:01:43]} Kf6 {[%emt 0:00:40]} 37. Ke3 {[%emt 0:01:23]} Ne6 {[%emt 0:00:42]} 38. Rd5 {[%emt 0:04:15]} Rxb4 {[%emt 0:00:28]} 39. Rd7 {[%emt 0:02:25]} a5 {[%emt 0:00:53]} 40. Kd3 {[%emt 0:00:47]} Rb1 {[%emt 0:03:23]} 41. Be2 {[%emt 0:01:01]} Nf4+ {[%emt 0:00:24]} 42. Kc2 {[%emt 0:00:41]} Rb4 {[%emt 0:00:28]} 43. Bf1 {[%emt 0:00:45]} Ke6 {[%emt 0:00:54]} 44. Rd8 {[%emt 0:01:11]} Ke7 {[%emt 0:00:51]} 45. Rb8 {[%emt 0:00:11]} Nd5 {[%emt 0:00:09]} 46. Kd3 {[%emt 0:01:23]} a4 {[%emt 0:01:05]} 47. Ra8 {[%emt 0:00:46]} Ke6 {[%emt 0:03:03]} 48. Re8+ {[%emt 0:00:34]} Kd6 {[%emt 0:00:41]} 49. Ra8 {[%emt 0:00:34]} Rb3+ {[%emt 0:00:25]} 50. Kd2 {[%emt 0:00:22]} b5 {[%emt 0:01:49]} 51. Ra6+ {[%emt 0:00:29]} Kd7 {[%emt 0:00:14]} 52. Bd3 {[%emt 0:02:13]} Rxd3+ {[%emt 0:00:36]} 0-1